fUST/lending_fUST_20250505
["ID","MTS","AMOUNT","RATE_DAILY","PERIOD"]
[359960211,1746449438787,-400.97828144,0.00035616,14]
[359960212,1746449438796,-1259.24,0.00035616,14]
[359960213,1746449438806,-400.0,0.00035616,14]
[359960214,1746449438816,-206.10300439,0.00035616,14]
[359960215,1746449438825,-400.0,0.00035616,14]
[359960216,1746449438835,-400.0,0.00035616,14]
[359960217,1746449438844,-400.0,0.00035616,14]
[359960218,1746449438853,-406.81207895,0.00035616,14]
[359960219,1746449438863,-404.56,0.00035616,14]
[359960220,1746449438873,-157.88394426,0.00035616,14]
[359960221,1746449438882,-400.0,0.00035616,14]
[359960222,1746449438892,-400.0,0.00035616,14]
[359960223,1746449438902,-400.0,0.00035616,14]
[359960224,1746449438911,-203.38039065,0.00035616,14]
[359960225,1746449438920,-400.0,0.00035616,14]
[359960226,1746449438930,-400.0,0.00035616,14]
[359960227,1746449438940,-400.0,0.00035616,14]
[359960228,1746449438950,-400.24305523,0.00035616,2]
[359960229,1746449438961,-400.0,0.00035616,14]
[359960230,1746449438970,-400.0,0.00035616,14]
[359960231,1746449438979,-186.79082279,0.00035616,14]
[359960232,1746449438988,-214.4004236,0.00035616,14]
[359960233,1746449438998,-400.0,0.00035616,14]
[359960234,1746449439009,-400.0,0.00035616,14]
[359960235,1746449439019,-400.0,0.00035616,14]
[359960236,1746449439029,-400.0,0.00035616,2]
[359960237,1746449439039,-168.27680601,0.00035616,14]
[359960238,1746449439049,-400.0,0.00035616,14]
[359960239,1746449439058,-400.0,0.00035616,2]
[359960240,1746449439068,-400.0,0.00035616,14]
[359960241,1746449439077,-400.0,0.00035616,14]
[359960242,1746449439087,-400.0,0.00035616,14]
[359960243,1746449439097,-400.0,0.00035616,14]
[359960244,1746449439107,-856.0,0.00035616,14]
[359960245,1746449439117,-400.0,0.00035616,14]
[359960246,1746449439128,-400.0,0.00035616,14]
[359960247,1746449439138,-400.0,0.00035616,14]
[359960248,1746449439148,-400.0,0.00035616,14]
[359960249,1746449439158,-400.0,0.00035616,14]
[359960250,1746449439167,-400.0,0.00035616,14]
[359960251,1746449439177,-403.96761852,0.00035616,14]
[359960252,1746449439186,-600.35,0.00035616,14]
[359960253,1746449439196,-514.38125726,0.00035616,14]
[359960254,1746449439206,-400.0,0.00035616,14]
[359960255,1746449439215,-400.0,0.00035616,14]
[359960256,1746449439225,-400.0,0.00035616,14]
[359960257,1746449439235,-1108.48,0.00035616,14]
[359960258,1746449439245,-505.65,0.00035616,14]
[359960259,1746449439254,-400.0,0.00035616,14]
[359960260,1746449439265,-400.0,0.00035616,14]
[359960262,1746449439275,-400.0,0.00035616,14]
[359960263,1746449439285,-402.07366038,0.00035616,14]
[359960264,1746449439294,-400.0,0.00035616,14]
[359960265,1746449439303,-400.0,0.00035616,14]
[359960266,1746449439312,-400.0,0.00035616,14]
[359960267,1746449439323,-400.0,0.00035616,14]
[359960268,1746449439332,-400.0,0.00035616,14]
[359960269,1746449439342,-484.72,0.00035616,14]
[359960270,1746449439351,-400.0,0.00035616,14]
[359960271,1746449439360,-400.0,0.00035616,14]
[359960272,1746449439370,-400.0,0.00035616,14]
[359960273,1746449439380,-400.0,0.00035616,14]
[359960275,1746449439389,-400.0,0.00035616,14]
[359960276,1746449439399,-499.67,0.00035616,14]
[359960277,1746449439529,-1608.04,0.00035616,14]
[359960278,1746449439539,-400.0,0.00035616,14]
[359960279,1746449439549,-400.0,0.00035616,14]
[359960280,1746449439558,-400.0,0.00035616,14]
[359960281,1746449439568,-400.0,0.00035616,14]
[359960282,1746449439578,-400.0,0.00035616,14]
[359960283,1746449439588,-400.0,0.00035616,14]
[359960284,1746449439599,-779.63,0.00035616,14]
[359960285,1746449439609,-500.0,0.00035616,14]
[359960286,1746449439618,-426.69,0.00035616,14]
[359960287,1746449439628,-504.71898235,0.00035616,14]
[359960288,1746449439638,-403.18437504,0.00035616,14]
[359960289,1746449439649,-401.64,0.00035616,14]
[359960290,1746449439660,-460.6,0.00035616,14]
[359960291,1746449439670,-400.0,0.00035616,14]
[359960292,1746449439680,-400.0,0.00035616,14]
[359960293,1746449439689,-400.0,0.00035616,14]
[359960294,1746449439699,-400.0,0.00035616,14]
[359960296,1746449439708,-400.0,0.00035616,14]
[359960298,1746449439718,-2383.52,0.00035616,14]
[359960300,1746449439727,-1254.95,0.00035616,14]
[359960302,1746449439737,-523.93,0.00035616,14]
[359960303,1746449439746,-400.0,0.00035616,14]
[359960304,1746449439756,-412.77,0.00035616,14]
[359960305,1746449439765,-1742.14,0.00035616,14]
[359960306,1746449439774,-400.0,0.00035616,14]
[359960307,1746449439783,-400.0,0.00035616,14]
[359960308,1746449439792,-400.0,0.00035616,14]
[359960309,1746449439802,-400.0,0.00035616,14]
[359960310,1746449439811,-400.0,0.00035616,14]
[359960311,1746449439820,-400.0,0.00035616,14]
[359960312,1746449439830,-400.0,0.00035616,14]
[359960313,1746449439839,-535.4,0.00035616,14]
[359960314,1746449439849,-627.65,0.00035616,14]
[359960315,1746449439859,-400.0,0.00035616,14]
[359960316,1746449439868,-500.0,0.00035616,14]
[359960317,1746449439878,-418.32395766,0.00035616,14]
[359960318,1746449439888,-513.05568798,0.00035616,14]
[359960320,1746449439897,-400.0,0.00035616,14]
[359960322,1746449439906,-400.0,0.00035616,14]
[359960324,1746449439916,-400.0,0.00035616,14]
[359960326,1746449439926,-683.42,0.00035616,14]
[359960328,1746449439935,-400.0,0.00035616,14]
[359960330,1746449439944,-400.0,0.00035616,14]
[359960332,1746449439953,-1000.0,0.00035616,14]
[359960334,1746449439962,-2890.42,0.00035616,14]
[359960336,1746449439971,-400.0,0.00035616,14]
[359960338,1746449439980,-200.07702048,0.00035616,14]
[359960340,1746449439989,-500.91484984,0.00035616,14]
[359960342,1746449439998,-400.0,0.00035616,14]
[359960344,1746449440007,-400.0,0.00035616,14]
[359960346,1746449440017,-400.0,0.00035616,14]
[359960348,1746449440027,-400.0,0.00035616,14]
[359960350,1746449440036,-534.57111978,0.00035616,14]
[359960352,1746449440045,-688.07,0.00035616,14]
[359960354,1746449440054,-400.0,0.00035616,14]
[359960356,1746449440065,-400.0,0.00035616,14]
[359960358,1746449440074,-400.0,0.00035616,14]
[359960360,1746449440083,-400.14815938,0.00035616,14]
[359960362,1746449440093,-400.0,0.00035616,14]
[359960364,1746449440103,-400.0,0.00035616,14]
[359960366,1746449440113,-400.0,0.00035616,14]
[359960368,1746449440122,-400.0,0.00035616,14]
[359960370,1746449440132,-502.33587833,0.00035616,14]
[359960372,1746449440142,-400.0,0.00035616,14]
[359960374,1746449440151,-400.0,0.00035616,14]
[359960376,1746449440162,-400.0,0.00035616,14]
[359960378,1746449440172,-400.0,0.00035616,14]
[359960380,1746449440181,-400.0,0.00035616,14]
[359960382,1746449440191,-400.0,0.00035616,14]
[359960384,1746449440201,-401.37620539,0.00035616,14]
[359960386,1746449440210,-500.0,0.00035616,14]
[359960388,1746449440220,-400.0,0.00035616,14]
[359960390,1746449440229,-400.0,0.00035616,14]
[359960392,1746449440238,-400.0,0.00035616,14]
[359960394,1746449440248,-400.0,0.00035616,14]
[359960396,1746449440258,-400.0,0.00035616,14]
[359960398,1746449440267,-400.0,0.00035616,14]
[359960400,1746449440276,-400.0,0.00035616,14]
[359960402,1746449440285,-400.0,0.00035616,14]
[359960404,1746449440295,-400.0,0.00035616,14]
[359960406,1746449440304,-400.0,0.00035616,14]
[359960408,1746449440314,-400.0,0.00035616,14]
[359960410,1746449440323,-522.29543877,0.00035616,14]
[359960411,1746449440333,-400.0,0.00035616,14]
[359960414,1746449440342,-523.36,0.00035616,14]
[359960415,1746449440351,-400.0,0.00035616,14]
[359960417,1746449440361,-400.0,0.00035616,14]
[359960418,1746449440371,-452.24,0.00035616,14]
[359960419,1746449440381,-400.0,0.00035616,14]
[359960420,1746449440391,-217.79190577,0.00035616,14]
[359960421,1746449440400,-1150.88,0.00035616,14]
[359960422,1746449440410,-400.0,0.00035616,14]
[359960423,1746449440420,-533.67901205,0.00035616,14]
[359960424,1746449440429,-358.0,0.00035616,14]
[359960425,1746449440441,-400.0,0.00035616,14]
[359960426,1746449440450,-400.0,0.00035616,14]
[359960427,1746449440459,-400.0,0.00035616,14]
[359960428,1746449440468,-412.27648471,0.00035616,14]
[359960429,1746449440477,-400.0,0.00035616,14]
[359960430,1746449440487,-400.0,0.00035616,14]
[359960431,1746449440496,-400.0,0.00035616,14]
[359960432,1746449440505,-400.0,0.00035616,14]
[359960433,1746449440514,-400.0,0.00035616,14]
[359960434,1746449440523,-400.0,0.00035616,14]
[359960435,1746449440532,-400.0,0.00035616,14]
[359960436,1746449440542,-500.0,0.00035616,15]
[359960437,1746449440551,-522.10481605,0.00035616,14]
[359960438,1746449440562,-500.36647621,0.00035616,14]
[359960439,1746449440571,-400.0,0.00035616,14]
[359960440,1746449440580,-402.90109119,0.00035616,14]
[359960441,1746449440589,-590.91,0.00035616,14]
[359960442,1746449440599,-400.0,0.00035616,14]
[359960443,1746449440608,-400.0,0.00035616,14]
[359960444,1746449440618,-400.0,0.00035616,14]
[359960445,1746449440629,-400.0,0.00035616,14]
[359960446,1746449440638,-400.0,0.00035616,14]
[359960447,1746449440648,-482.22,0.00035616,14]
[359960448,1746449440657,-400.0,0.00035616,14]
[359960449,1746449440667,-200.0,0.00035616,14]
[359960450,1746449440676,-405.47783908,0.00035616,14]
[359960451,1746449440685,-400.0,0.00035616,14]
[359960452,1746449440694,-400.0,0.00035616,14]
[359960453,1746449440703,-401.66396262,0.00035616,14]
[359960454,1746449440713,-400.0,0.00035616,14]
[359960455,1746449440722,-400.0,0.00035616,14]
[359960456,1746449440732,-440.52,0.00035616,14]
[359960457,1746449440741,-400.0,0.00035616,14]
[359960458,1746449440750,-400.0,0.00035616,14]
[359960459,1746449440760,-501.42649316,0.00035616,14]
[359960460,1746449440769,-400.0,0.00035616,14]
[359960461,1746449440778,-846.55,0.00035616,14]
[359960462,1746449440788,-400.0,0.00035616,14]
[359960463,1746449440798,-519.25945595,0.00035616,14]
[359960464,1746449440807,-742.59,0.00035616,14]
[359960465,1746449440816,-400.0,0.00035616,14]
[359960466,1746449440825,-767.77,0.00035616,14]
[359960467,1746449440835,-207.29038792,0.00035616,14]
[359960468,1746449440845,-1478.01,0.00035616,14]
[359960469,1746449440854,-400.0,0.00035616,14]
[359960470,1746449440864,-1500.0,0.00035616,30]
[359960471,1746449440875,-400.0,0.00035616,14]
[359960472,1746449440887,-400.0,0.00035616,14]
[359960473,1746449440896,-400.0,0.00035616,14]
[359960474,1746449440906,-400.0,0.00035616,14]
[359960475,1746449440916,-786.55,0.00035616,14]
[359960476,1746449440925,-897.18,0.00035616,14]
[359960477,1746449440935,-400.0,0.00035616,14]
[359960478,1746449440944,-400.0,0.00035616,14]
[359960479,1746449440954,-711.56,0.00035616,14]
[359960480,1746449440962,-187.45460401,0.00035616,14]
[359960481,1746449440972,-400.0,0.00035616,14]
[359960482,1746449440981,-400.0,0.00035616,14]
[359960483,1746449440990,-400.0,0.00035616,14]
[359960484,1746449441000,-400.0,0.00035616,14]
[359960485,1746449441009,-400.0,0.00035616,14]
[359960486,1746449441019,-400.0,0.00035616,14]
[359960487,1746449441029,-400.0,0.00035616,14]
[359960488,1746449441038,-2539.24,0.00035616,2]
[359960489,1746449441047,-403.08481845,0.00035616,14]
[359960490,1746449441057,-400.0,0.00035616,14]
[359960491,1746449441066,-400.0,0.00035616,14]
[359960492,1746449441076,-400.0,0.00035616,14]
[359960493,1746449441085,-400.0,0.00035616,14]
[359960494,1746449441098,-400.0,0.00035616,14]
[359960495,1746449441108,-98.98892852,0.00035616,14]
[359960496,1746449441331,-383.93107148,0.00035616,14]
[359960497,1746449441340,-400.0,0.00035616,14]
[359960498,1746449441350,-400.0,0.00035616,14]
[359960499,1746449441359,-400.0,0.00035616,14]
[359960500,1746449441369,-401.48027011,0.00035616,14]
[359960501,1746449441380,-400.0,0.00035616,14]
[359960502,1746449441389,-432.71,0.00035616,14]
[359960503,1746449441398,-400.0,0.00035616,14]
[359960504,1746449441407,-400.83285896,0.00035616,14]
[359960505,1746449441417,-400.0,0.00035616,14]
[359960506,1746449441426,-400.0,0.00035616,14]
[359960507,1746449441435,-460.03743445,0.00035616,14]
[359960508,1746449441445,-400.0,0.00035616,14]
[359960509,1746449441454,-400.0,0.00035616,14]
[359960510,1746449441464,-400.0,0.00035616,14]
[359960511,1746449441473,-400.0,0.00035616,14]
[359960512,1746449441483,-400.0,0.00035616,14]
[359960513,1746449441492,-400.0,0.00035616,14]
[359960514,1746449441504,-400.0,0.00035616,14]
[359960515,1746449441513,-400.0,0.00035616,14]
[359960516,1746449441523,-400.0,0.00035616,14]
[359960517,1746449441532,-400.0,0.00035616,14]
[359960518,1746449441542,-300.60506843,0.00035616,14]
[359960519,1746449441551,-400.0,0.00035616,14]
[359960520,1746449441560,-400.0,0.00035616,14]
[359960521,1746449441569,-400.0,0.00035616,14]
[359960522,1746449441578,-400.0,0.00035616,14]
[359960523,1746449441588,-766.96,0.00035616,14]
[359960524,1746449441597,-400.0,0.00035616,14]
[359960525,1746449441725,-400.0,0.00035616,14]
[359960526,1746449441735,-400.0,0.00035616,14]
[359960527,1746449441745,-66.82738187,0.00035616,14]
[359960528,1746449441757,-333.17261813,0.00035616,14]
[359960529,1746449441767,-359.34006764,0.00035616,14]
[359960530,1746449441778,-40.65993236,0.00035616,14]
[359960531,1746449441787,-400.0,0.00035616,14]
[359960532,1746449441796,-372.40149328,0.00035616,14]
[359960533,1746449441809,-27.59850672,0.00035616,14]
[359960534,1746449441818,-400.0,0.00035616,14]
[359960535,1746449441827,-95.1144221,0.00035616,14]
[359960573,1746449442973,-155.58486631,0.00033505,2]
[359960574,1746449442983,-177.74620193,0.00035479,7]
[359960575,1746449442993,-304.8855779,0.00035616,14]
[359960576,1746449443003,-400.0,0.00035616,14]
[359960577,1746449443014,-400.0,0.00035616,14]
[359960578,1746449443026,-400.0,0.00035616,14]
[359960579,1746449443036,-400.0,0.00035616,14]
[359960580,1746449443046,-400.67441337,0.00035616,14]
[359960581,1746449443056,-306.3922466,0.00035616,14]
[359960582,1746449443092,-500.0,0.00033989,7]
[359960583,1746449443102,-500.0,0.00033989,7]
[359960584,1746449443111,-359.82202511,0.00033989,7]
[359960585,1746449443121,-93.6077534,0.00035616,14]
[359960586,1746449443131,-400.0,0.00035616,14]
[359960587,1746449443140,-405.09134318,0.00035616,14]
[359960588,1746449443149,-400.0,0.00035616,14]
[359960589,1746449443158,-1584.12,0.00035616,14]
[359960590,1746449443168,-400.0,0.00035616,14]
[359960591,1746449443177,-446.36,0.00035616,14]
[359960592,1746449443186,-400.0,0.00035616,14]
[359960593,1746449443196,-710.62,0.00035616,14]
[359960594,1746449443205,-400.0,0.00035616,14]
[359960596,1746449443215,-400.0,0.00035616,14]
[359960597,1746449443224,-557.21,0.00035616,14]
[359960598,1746449443233,-400.0,0.00035616,14]
[359960599,1746449443243,-635.46,0.00035616,14]
[359960600,1746449443251,-400.0,0.00035616,14]
[359960601,1746449443261,-400.0,0.00035616,14]
[359960602,1746449443270,-400.0,0.00035616,14]
[359960603,1746449443279,-504.35,0.00035616,14]
[359960604,1746449443289,-541.13,0.00035616,14]
[359960605,1746449443298,-523.69,0.00035616,14]
[359960606,1746449443307,-403.66588441,0.00035616,14]
[359960607,1746449443317,-400.0,0.00035616,14]
[359960608,1746449443326,-400.0,0.00035616,14]
[359960609,1746449443336,-400.0,0.00035616,14]
[359960610,1746449443345,-400.0,0.00035616,14]
[359960611,1746449443355,-400.0,0.00035616,14]
[359960612,1746449443364,-1012.85984742,0.00035616,14]
[359960613,1746449443373,-342.02183518,0.00035616,14]
[359960614,1746449443383,-400.0,0.00035616,14]
[359960615,1746449443392,-602.94,0.00035616,14]
[359960616,1746449443401,-400.0,0.00035616,14]
[359960617,1746449443410,-488.27,0.00035616,14]
[359960618,1746449443419,-400.0,0.00035616,14]
[359960619,1746449443429,-529.14,0.00035616,14]
[359960620,1746449443438,-400.0,0.00035616,14]
[359960621,1746449443447,-400.0,0.00035616,14]
[359960622,1746449443457,-400.0,0.00035616,14]
[359960623,1746449443467,-400.0,0.00035616,14]
[359960624,1746449443476,-400.0,0.00035616,14]
[359960625,1746449443485,-400.0,0.00035616,14]
[359960626,1746449443494,-413.95301629,0.00035616,14]
[359960627,1746449443503,-400.0,0.00035616,14]
[359960628,1746449443512,-400.0,0.00035616,14]
[359960629,1746449443522,-400.0,0.00035616,14]
[359960630,1746449443531,-1699.81,0.00035616,14]
[359960631,1746449443540,-405.32129881,0.00035616,14]
[359960632,1746449443549,-400.0,0.00035616,14]
[359960633,1746449443558,-400.0,0.00035616,14]
[359960634,1746449443567,-400.0,0.00035616,14]
[359960635,1746449443576,-435.05134238,0.00035616,14]
[359960636,1746449443586,-400.0,0.00035616,14]
[359960637,1746449443595,-400.0,0.00035616,14]
[359960638,1746449443604,-2818.03,0.00035616,14]
[359960639,1746449443614,-1097.23,0.00035616,14]
[359960640,1746449443623,-400.0,0.00035616,14]
[359960641,1746449443632,-400.0,0.00035616,14]
[359960642,1746449443641,-832.93,0.00035616,14]
[359960643,1746449443650,-400.44101049,0.00035616,14]
[359960644,1746449443660,-400.0,0.00035616,14]
[359960645,1746449443669,-501.66015232,0.00035616,14]
[359960646,1746449443678,-400.0,0.00035616,14]
[359960647,1746449443688,-402.0613419,0.00035616,7]
[359960648,1746449443698,-400.0,0.00035616,14]
[359960649,1746449443707,-400.0,0.00035616,14]
[359960650,1746449443716,-400.0,0.00035616,14]
[359960651,1746449443726,-400.0,0.00035616,14]
[359960652,1746449443735,-400.0,0.00035616,14]
[359960653,1746449443744,-500.0,0.00035616,14]
[359960654,1746449443754,-500.0,0.00035616,14]
[359960655,1746449443763,-331.40739042,0.00035616,14]
[359960656,1746449443772,-400.0,0.00035616,14]
[359960657,1746449443781,-400.0,0.00035616,14]
[359960658,1746449443791,-8563.31,0.00035616,14]
[359960659,1746449443800,-917.42,0.00035616,14]
[359960660,1746449443810,-1418.67,0.00035616,14]
[359960661,1746449443819,-400.0,0.00035616,14]
[359960662,1746449443830,-400.0,0.00035616,14]
[359960663,1746449443840,-400.0,0.00035616,14]
[359960664,1746449443851,-400.0,0.00035616,14]
[359960665,1746449443861,-2489.35,0.00035616,14]
[359960666,1746449443870,-504.42079598,0.00035616,14]
[359960667,1746449443880,-402.96708623,0.00035616,14]
[359960668,1746449443890,-500.0,0.00035616,14]
[359960669,1746449443899,-400.0,0.00035616,14]
[359960670,1746449443909,-280.76133008,0.00035616,14]
[359960671,1746449443919,-400.0,0.00035616,14]
[359960672,1746449443929,-400.0,0.00035616,14]
[359960673,1746449443938,-314.52545903,0.00035616,12]
[359960674,1746449443948,-566.37,0.00035616,14]
[359960675,1746449443957,-400.0,0.00035616,14]
[359960676,1746449443966,-400.0,0.00035616,14]
[359960677,1746449443976,-416.93,0.00035616,14]
[359960678,1746449443985,-400.0,0.00035616,14]
[359960679,1746449443995,-400.0,0.00035616,14]
[359960680,1746449444004,-400.0,0.00035616,14]
[359960681,1746449444015,-400.0,0.00035616,14]
[359960682,1746449444025,-400.0,0.00035616,14]
[359960683,1746449444034,-2296.8,0.00035616,14]
[359960684,1746449444043,-400.0,0.00035616,14]
[359960685,1746449444052,-400.0,0.00035616,14]
[359960686,1746449444062,-3288.33,0.00035616,14]
[359960687,1746449444072,-2110.69,0.00035616,14]
[359960688,1746449444081,-3888.28,0.00035616,14]
[359960689,1746449444090,-400.0,0.00035616,14]
[359960690,1746449444100,-424.37,0.00035616,14]
[359960691,1746449444109,-400.0,0.00035616,14]
[359960692,1746449444118,-400.0,0.00035616,14]
[359960693,1746449444128,-400.0,0.00035616,14]
[359960694,1746449444137,-400.0,0.00035616,14]
[359960695,1746449444146,-2524.95,0.00035616,14]
[359960696,1746449444156,-400.0,0.00035616,14]
[359960697,1746449444165,-400.0,0.00035616,14]
[359960698,1746449444174,-1640.86,0.00035616,14]
[359960699,1746449444183,-400.0,0.00035616,14]
[359960700,1746449444193,-400.0,0.00035616,14]
[359960701,1746449444202,-400.0,0.00035616,14]
[359960702,1746449444211,-1188.34,0.00035616,14]
[359960703,1746449444221,-3723.52,0.00035616,14]
[359960704,1746449444230,-400.0,0.00035616,14]
[359960705,1746449444239,-3196.3,0.00035616,14]
[359960706,1746449444249,-458.19504366,0.00035616,14]
[359960707,1746449444258,-403.07855009,0.00035616,14]
[359960708,1746449444383,-400.0,0.00035616,14]
[359960709,1746449444392,-216.63557823,0.00035616,14]
[359960731,1746449445823,-160.0,0.00032389,2]
[359960733,1746449445832,-422.748628,0.00033989,7]
[359960745,1746449445933,-77.251372,0.00033989,7]
[359960746,1746449445942,-320.19056969,0.00033989,7]
[359960760,1746449706718,-322.84756337,0.00022,2]
[359960761,1746449715068,-607.89345356,0.00022,2]
[359960762,1746449715334,-7235.3758206,0.00022,2]
[359960763,1746449720415,-151.5907987,0.000229,2]
[359960799,1746450336109,-167.21822413,0.00026,30]
[359960807,1746450434082,-70.85409147,0.00026,30]
[359960808,1746450434102,-256.19261315,0.000265,2]
[359960809,1746450434137,-229.02042948,0.000265,2]
[359960810,1746450437093,-214.78695737,0.000265,2]
[359960811,1746450437113,-296.054437,0.00027397,2]
[359960812,1746450437133,-178.7095993,0.00027466,2]
[359960813,1746450437152,-800.0,0.000275,3]
[359960814,1746450437172,-170.509308,0.00027852,2]
[359960815,1746450437192,-281.92620244,0.000285,4]
[359960816,1746450439788,-518.07379756,0.000285,4]
[359960817,1746450439809,-160.0,0.00028884,2]
[359960818,1746450439832,-201.52122073,0.000289,20]
[359960819,1746450439856,-201.52122056,0.00029293,20]
[359960820,1746450439880,-201.52122056,0.00029686,21]
[359960821,1746450439903,-10214.36254059,0.00029686,2]
[359960824,1746450551125,-171.2521057,0.00024953,10]
[359960825,1746450551146,-155.0,0.0002955,2]
[359960826,1746450551166,-300.0,0.00029684,2]
[359960827,1746450551188,-348.71264714,0.00029685,2]
[359960828,1746450551207,-445.5,0.00029685,2]
[359960829,1746450551237,-500.0,0.00029685,2]
[359960830,1746450551267,-500.0,0.00029685,2]
[359960831,1746450551297,-500.0,0.00029685,2]
[359960832,1746450551326,-500.0,0.00029685,2]
[359960833,1746450551355,-500.0,0.00029685,2]
[359960834,1746450551381,-500.0,0.00029685,2]
[359960835,1746450551410,-500.0,0.00029685,2]
[359960836,1746450551442,-500.0,0.00029685,2]
[359960837,1746450551468,-500.0,0.00029685,2]
[359960838,1746450551497,-500.0,0.00029685,2]
[359960839,1746450551525,-500.0,0.00029685,2]
[359960840,1746450551553,-500.0,0.00029685,2]
[359960841,1746450551578,-500.0,0.00029685,2]
[359960842,1746450551605,-500.0,0.00029685,2]
[359960843,1746450551631,-500.0,0.00029685,2]
[359960844,1746450551658,-500.0,0.00029685,2]
[359960845,1746450551685,-596.6068601,0.00029685,2]
[359960846,1746450551712,-500.0,0.00029685,2]
[359960847,1746450551740,-500.0,0.00029685,2]
[359960848,1746450551767,-500.0,0.00029685,2]
[359960849,1746450551795,-500.0,0.00029685,2]
[359960850,1746450551824,-500.0,0.00029685,2]
[359960851,1746450551851,-500.0,0.00029685,2]
[359960852,1746450551879,-500.0,0.00029685,2]
[359960853,1746450551907,-500.0,0.00029685,2]
[359960854,1746450551927,-39785.63745941,0.00029686,2]
[359960855,1746450551948,-458.59066845,0.0003,2]
[359960856,1746450551969,-500.0,0.000301,5]
[359960857,1746450551989,-500.0,0.000301,5]
[359960858,1746450552009,-500.0,0.000301,5]
[359960859,1746450552030,-502.34818582,0.000301,5]
[359960860,1746450552050,-513.7206976,0.000301,5]
[359960861,1746450552070,-500.0,0.000301,5]
[359960862,1746450552089,-500.0,0.000301,2]
[359960863,1746450552110,-500.0,0.000301,5]
[359960864,1746450552129,-206.41212574,0.000301,5]
[359960865,1746450552148,-150.89891265,0.000301,5]
[359960866,1746450552167,-501.45792757,0.000301,5]
[359960867,1746450552186,-500.0,0.000305,5]
[359960868,1746450552205,-500.0,0.000305,5]
[359960869,1746450552228,-201.52122056,0.000309,23]
[359960870,1746450552247,-516.90754983,0.00030959,2]
[359960871,1746450552270,-201.52122056,0.0003126,24]
[359960872,1746450552291,-458.59066845,0.00031414,2]
[359960873,1746450552311,-201.52122056,0.0003162,25]
[359960874,1746450552333,-201.52122056,0.0003198,26]
[359960875,1746450552353,-420.0,0.00032003,2]
[359960876,1746450552373,-177.2886453,0.0003205,5]
[359960877,1746450554115,-500.0,0.000297,5]
[359960878,1746450554134,-322.7113547,0.0003205,5]
[359960879,1746450554155,-201.52122056,0.0003234,26]
[359960880,1746450554175,-160.0,0.00032367,2]
[359960881,1746450554193,-841.77443764,0.00032367,2]
[359960882,1746450554212,-421.83547488,0.00032367,2]
[359960883,1746450554231,-160.0,0.0003237,2]
[359960884,1746450554250,-309.05669281,0.0003237,2]
[359960885,1746450554269,-310.10999118,0.0003237,2]
[359960886,1746450554290,-201.52122056,0.000327,27]
[359960888,1746450582606,160.0,0.00029685,2]
[359960889,1746450603652,500.0,0.000297,5]
[359960890,1746450604364,398.0593844,0.000297,5]
[359960891,1746450614306,155.0,0.00032144,2]
[359960892,1746450629280,594.4485345,0.000252,2]
[359960893,1746450629301,1885.20821368,0.000252,2]
[359960894,1746450629322,159.75259886,0.000252,2]